fUSD/lending_fUSD_20240327
["ID","MTS","AMOUNT","RATE_DAILY","PERIOD"]
[320755683,1711546249347,-796.05,0.00055068,120]
[320755684,1711546249368,-500.0,0.00055068,120]
[320755685,1711546249384,-531.42,0.00055068,120]
[320755686,1711546249395,-722.74,0.00055068,120]
[320755687,1711546249406,-500.0,0.00055068,120]
[320755688,1711546249417,-1302.25,0.00055068,120]
[320755689,1711546249429,-500.0,0.00055068,120]
[320755690,1711546249440,-500.0,0.00055068,120]
[320755691,1711546249452,-500.0,0.00055068,120]
[320755692,1711546249462,-443.39,0.00055068,120]
[320755693,1711546249472,-500.0,0.00055068,120]
[320755694,1711546249483,-507.66,0.00055068,120]
[320755695,1711546249493,-514.75057784,0.00055068,120]
[320755696,1711546249503,-1249.7,0.00055068,120]
[320755697,1711546249513,-500.0,0.00055068,120]
[320755698,1711546249524,-500.0,0.00055068,120]
[320755699,1711546249534,-500.0,0.00055068,120]
[320755700,1711546249544,-629.16,0.00055068,120]
[320755701,1711546249554,-684.28,0.00055068,120]
[320755702,1711546249565,-536.56,0.00055068,120]
[320755703,1711546249576,-653.48,0.00055068,120]
[320755704,1711546249587,-500.0,0.00055068,120]
[320755705,1711546249597,-377.77,0.00055068,120]
[320755706,1711546249613,-500.0,0.00055068,120]
[320755707,1711546249623,-500.0,0.00055068,120]
[320755708,1711546249633,-500.0,0.00055068,120]
[320755709,1711546249643,-500.0,0.00055068,120]
[320755710,1711546249653,-500.0,0.00055068,120]
[320755711,1711546249662,-1486.24,0.00055068,120]
[320755712,1711546249672,-1283.94,0.00055068,120]
[320755713,1711546249682,-500.0,0.00055068,120]
[320755714,1711546249692,-500.0,0.00055068,120]
[320755715,1711546249702,-500.0,0.00055068,120]
[320755716,1711546249712,-913.76,0.00055068,120]
[320755717,1711546249721,-3721.37,0.00055068,120]
[320755718,1711546249732,-500.0,0.00055068,120]
[320755719,1711546249742,-754.35,0.00055068,120]
[320755720,1711546249752,-500.0,0.00055068,120]
[320755721,1711546249762,-21873.43,0.00055068,120]
[320755722,1711546249771,-1916.66,0.00055068,120]
[320755723,1711546249782,-860.18,0.00055068,120]
[320755724,1711546249791,-500.0,0.00055068,120]
[320755725,1711546249802,-500.0,0.00055068,120]
[320755726,1711546249812,-492.52811775,0.00055068,120]
[320755727,1711546249822,-500.0,0.00055068,120]
[320755728,1711546249832,-2119.71,0.00055068,120]
[320755729,1711546249841,-822.03,0.00055068,120]
[320755730,1711546249855,-500.0,0.00055068,120]
[320755731,1711546249865,-500.0,0.00055068,120]
[320755732,1711546249875,-619.23,0.00055068,120]
[320755733,1711546249886,-500.0,0.00055068,120]
[320755734,1711546249896,-500.0,0.00055068,120]
[320755735,1711546249906,-1003.22,0.00055068,120]
[320755736,1711546249916,-682.74,0.00055068,120]
[320755737,1711546249937,-500.0,0.00055068,120]
[320755738,1711546249948,-500.0,0.00055068,120]
[320755739,1711546249959,-10277.58,0.00055068,120]
[320755740,1711546249969,-4248.24,0.00055068,120]
[320755741,1711546249979,-52410.75,0.00055068,120]
[320755742,1711546249990,-1019.67,0.00055068,120]
[320755743,1711546250001,-3268.76,0.00055068,120]
[320755744,1711546250012,-849.29,0.00055068,120]
[320755745,1711546250023,-3365.88,0.00055068,120]
[320755746,1711546250035,-500.0,0.00055068,120]
[320755747,1711546250045,-500.0,0.00055068,120]
[320755748,1711546250056,-2493.43,0.00055068,120]
[320755749,1711546250066,-6502.27,0.00055068,120]
[320755750,1711546250077,-1118.56,0.00055068,120]
[320755751,1711546250089,-1903.01,0.00055068,120]
[320755752,1711546250099,-4032.81,0.00055068,120]
[320755753,1711546250114,-500.0,0.00055068,120]
[320755754,1711546250124,-3489.96,0.00055068,120]
[320755755,1711546250135,-1655.33,0.00055068,120]
[320755756,1711546250145,-500.0,0.00055068,120]
[320755757,1711546250156,-2377.98,0.00055068,120]
[320755758,1711546250167,-2781.46,0.00055068,120]
[320755759,1711546250177,-809.96,0.00055068,120]
[320755760,1711546250188,-2002.63,0.00055068,120]
[320755761,1711546250199,-5081.01461124,0.00055068,120]
[320755762,1711546250227,-9678.75538876,0.00055068,120]
[320755763,1711546250238,-791.97,0.00055068,120]
[320755764,1711546250249,-500.0,0.00055068,120]
[320755765,1711546250260,-1000.0,0.00055068,14]
[320755766,1711546250271,-1559.07,0.00055068,120]
[320755767,1711546250283,-273.46,0.00055068,120]
[320755768,1711546250294,-3176.79,0.00055068,120]
[320755769,1711546250305,-500.0,0.00055068,120]
[320755770,1711546250316,-500.0,0.00055068,120]
[320755771,1711546250327,-675.25,0.00055068,120]
[320755772,1711546250339,-2335.04,0.00055068,120]
[320755773,1711546250355,-500.0,0.00055068,120]
[320755774,1711546250368,-4505.08,0.00055068,120]
[320755775,1711546250379,-370.73922946,0.00055068,120]
[320755776,1711546250390,-10822.87,0.00055068,120]
[320755777,1711546250401,-500.0,0.00055068,120]
[320755778,1711546250414,-780.73,0.00055068,120]
[320755779,1711546250424,-500.0,0.00055068,120]
[320755780,1711546250435,-619.17,0.00055068,120]
[320755781,1711546250450,-703.7,0.00055068,120]
[320755782,1711546250462,-500.0,0.00055068,120]
[320755783,1711546250473,-4740.44,0.00055068,120]
[320755784,1711546250484,-1735.73,0.00055068,120]
[320755785,1711546250495,-104.38538178,0.00055068,120]
[320755786,1711546251091,-395.61461822,0.00055068,120]
[320755787,1711546251105,-2218.02,0.00055068,120]
[320755788,1711546251115,-500.0,0.00055068,120]
[320755789,1711546251126,-557.85,0.00055068,120]
[320755790,1711546251137,-353.60612791,0.00055068,120]
[320755791,1711546251147,-1843.95,0.00055068,120]
[320755792,1711546251158,-500.0,0.00055068,120]
[320755793,1711546251168,-2753.07,0.00055068,120]
[320755794,1711546251179,-1883.62,0.00055068,120]
[320755795,1711546251189,-500.0,0.00055068,120]
[320755796,1711546251200,-4513.67,0.00055068,120]
[320755797,1711546251211,-500.0,0.00055068,120]
[320755798,1711546251425,-1877.07,0.00055068,120]
[320755799,1711546251452,-500.0,0.00055068,120]
[320755800,1711546251462,-1576.26,0.00055068,120]
[320755801,1711546251471,-990.99,0.00055068,120]
[320755802,1711546251480,-1131.33,0.00055068,120]
[320755803,1711546251490,-500.0,0.00055068,120]
[320755804,1711546251499,-3993.02,0.00055068,120]
[320755805,1711546251509,-660.85,0.00055068,120]
[320755806,1711546251518,-1247.94,0.00055068,120]
[320755807,1711546251529,-3155.02,0.00055068,120]
[320755808,1711546251538,-9955.42,0.00055068,120]
[320755809,1711546251548,-500.0,0.00055068,120]
[320755810,1711546251557,-500.0,0.00055068,120]
[320755811,1711546251566,-605.7,0.00055068,120]
[320755812,1711546251575,-1396.99,0.00055068,120]
[320755813,1711546251585,-3326.33,0.00055068,120]
[320755814,1711546251594,-6861.65,0.00055068,120]
[320755815,1711546251606,-500.0,0.00055068,120]
[320755816,1711546251615,-4570.49,0.00055068,120]
[320755817,1711546251625,-4124.1,0.00055068,120]
[320755818,1711546251635,-595.93,0.00055068,120]
[320755819,1711546251644,-531.49,0.00055068,120]
[320755820,1711546251654,-2890.55,0.00055068,120]
[320755821,1711546251664,-500.0,0.00055068,7]
[320755822,1711546251674,-3904.65412937,0.00055068,120]
[320755823,1711546252748,-10084.66587063,0.00055068,120]
[320755824,1711546252761,-500.0,0.00055068,120]
[320755825,1711546252781,-500.0,0.00055068,120]
[320755826,1711546252792,-4679.66,0.00055068,120]
[320755827,1711546252802,-512.55038254,0.00055068,120]
[320755828,1711546252813,-500.0,0.00055068,120]
[320755829,1711546252824,-3271.7,0.00055068,120]
[320755830,1711546252835,-41795.23,0.00055068,120]
[320755831,1711546252845,-2282.57,0.00055068,120]
[320755832,1711546252859,-5627.49,0.00055068,120]
[320755833,1711546252869,-500.0,0.00055068,120]
[320755834,1711546252879,-500.0,0.00055068,120]
[320755835,1711546252889,-500.0,0.00055068,120]
[320755836,1711546252898,-569.04,0.00055068,120]
[320755837,1711546252908,-5592.75,0.00055068,120]
[320755838,1711546252917,-761.08,0.00055068,120]
[320755839,1711546252927,-3670.01,0.00055068,120]
[320755840,1711546252936,-500.0,0.00055068,120]
[320755841,1711546252945,-7743.51,0.00055068,120]
[320755842,1711546252955,-500.0,0.00055068,120]
[320755843,1711546252964,-2679.29,0.00055068,120]
[320755844,1711546252974,-657.93,0.00055068,120]
[320755845,1711546252983,-500.0,0.00055068,120]
[320755846,1711546252993,-1839.6,0.00055068,120]
[320755847,1711546253003,-1315.57,0.00055068,120]
[320755848,1711546253012,-4254.04,0.00055068,120]
[320755849,1711546253022,-500.0,0.00055068,120]
[320755850,1711546253031,-500.0,0.00055068,85]
[320755851,1711546253041,-10846.92,0.00055068,120]
[320755852,1711546253051,-1768.16,0.00055068,120]
[320755853,1711546253061,-500.0,0.00055068,120]
[320755854,1711546253071,-3432.06,0.00055068,120]
[320755855,1711546253080,-3495.69,0.00055068,120]
[320755856,1711546253089,-1982.01,0.00055068,120]
[320755857,1711546253098,-11789.75,0.00055068,120]
[320755858,1711546253110,-3095.23,0.00055068,120]
[320755859,1711546253118,-1112.01,0.00055068,120]
[320755860,1711546253128,-1435.37,0.00055068,120]
[320755861,1711546253137,-500.0,0.00055068,120]
[320755862,1711546253146,-1604.22,0.00055068,120]
[320755863,1711546253156,-749.83,0.00055068,120]
[320755864,1711546253166,-10818.47,0.00055068,120]
[320755865,1711546253175,-2149.13,0.00055068,120]
[320755866,1711546253185,-500.0,0.00055068,120]
[320755867,1711546253195,-2348.74,0.00055068,120]
[320755868,1711546253205,-1451.12,0.00055068,21]
[320755869,1711546253215,-3081.76,0.00055068,120]
[320755870,1711546253224,-1180.95,0.00055068,120]
[320755871,1711546253233,-857.15,0.00055068,120]
[320755872,1711546253242,-2669.46,0.00055068,120]
[320755873,1711546253252,-500.0,0.00055068,120]
[320755874,1711546253261,-2272.11,0.00055068,120]
[320755875,1711546253271,-1352.32,0.00055068,120]
[320755876,1711546253281,-500.0,0.00055068,120]
[320755877,1711546253290,-5503.0,0.00055068,120]
[320755878,1711546253299,-5598.25,0.00055068,120]
[320755879,1711546253309,-961.23,0.00055068,120]
[320755880,1711546253318,-2143.06,0.00055068,120]
[320755881,1711546253330,-2082.08,0.00055068,120]
[320755882,1711546253339,-815.9,0.00055068,120]
[320755883,1711546253350,-1368.84,0.00055068,120]
[320755884,1711546253363,-500.0,0.00055068,120]
[320755885,1711546253377,-1928.38,0.00055068,120]
[320755886,1711546253386,-3011.32,0.00055068,120]
[320755887,1711546253395,-793.86,0.00055068,120]
[320755888,1711546253405,-1368.28,0.00055068,120]
[320755889,1711546253416,-500.0,0.00055068,120]
[320755890,1711546253425,-7556.18,0.00055068,120]
[320755891,1711546253434,-581.46,0.00055068,120]
[320755892,1711546253445,-697.38,0.00055068,120]
[320755893,1711546253455,-500.0,0.00055068,120]
[320755894,1711546253467,-2503.39,0.00055068,120]
[320755895,1711546253479,-500.0,0.00055068,120]
[320755896,1711546253489,-8529.57,0.00055068,120]
[320755897,1711546253499,-536.2,0.00055068,120]
[320755898,1711546253509,-1917.65,0.00055068,120]
[320755899,1711546253519,-759.45,0.00055068,120]
[320755900,1711546253531,-525.48,0.00055068,120]
[320755901,1711546253542,-1477.82,0.00055068,120]
[320755902,1711546253551,-1223.91,0.00055068,120]
[320755903,1711546253562,-825.56,0.00055068,120]
[320755904,1711546253572,-1436.23,0.00055068,120]
[320755905,1711546253584,-500.0,0.00055068,120]
[320755906,1711546253595,-1324.17,0.00055068,120]
[320755907,1711546253606,-500.0,0.00055068,120]
[320755908,1711546253615,-500.0,0.00055068,120]
[320755909,1711546253624,-500.0,0.00055068,120]
[320755910,1711546253633,-2816.8,0.00055068,120]
[320755911,1711546253642,-1465.89,0.00055068,120]
[320755912,1711546253651,-500.0,0.00055068,120]
[320755913,1711546253661,-1390.99,0.00055068,120]
[320755914,1711546253670,-500.0,0.00055068,120]
[320755915,1711546253679,-2196.4,0.00055068,120]
[320755916,1711546253688,-1853.28,0.00055068,120]
[320755917,1711546253697,-500.0,0.00055068,120]
[320755918,1711546253706,-879.78,0.00055068,120]
[320755919,1711546253716,-683.41,0.00055068,120]
[320755920,1711546253725,-2070.24,0.00055068,120]
[320755921,1711546253734,-500.0,0.00055068,120]
[320755922,1711546253743,-5083.4,0.00055068,120]
[320755923,1711546253752,-500.0,0.00055068,120]
[320755924,1711546253761,-500.0,0.00055068,120]
[320755925,1711546253770,-2530.28,0.00055068,120]
[320755926,1711546253779,-677.34,0.00055068,120]
[320755927,1711546253788,-2419.47,0.00055068,120]
[320755928,1711546253797,-500.0,0.00055068,120]
[320755929,1711546253806,-1297.52,0.00055068,120]
[320755930,1711546253816,-500.0,0.00055068,120]
[320755931,1711546253825,-3660.16,0.00055068,120]
[320755932,1711546253835,-500.0,0.00055068,120]
[320755933,1711546253844,-500.0,0.00055068,120]
[320755934,1711546253853,-1426.0,0.00055068,90]
[320755935,1711546253867,-50075.80809874,0.00055068,90]
[320755936,1711546253881,-42749.19190126,0.00055068,90]
[320755937,1711546253891,-263.53012624,0.00055094,54]
[320755938,1711546253901,-155.82,0.000551,8]
[320755939,1711546253911,-11953.00323256,0.00055117,33]
[320755940,1711546253921,-159.96085961,0.00055131,120]
[320755941,1711546253930,-155.94263344,0.00055242,60]
[320755942,1711546253939,-5000.0,0.000553,120]
[320755943,1711546253948,-729.0,0.00055312,15]
[320755944,1711546253957,-193.0,0.0005532,15]
[320755945,1711546253967,-729.0,0.00055322,15]
[320755946,1711546253976,-415.7577203,0.00055328,14]
[320755947,1711546253985,-193.0,0.0005533,15]
[320755948,1711546253994,-729.0,0.00055332,15]
[320755949,1711546254003,-193.0,0.0005534,15]
[320755950,1711546254012,-200.0,0.00055342,120]
[320755951,1711546254021,-500.0,0.00055342,120]
[320755952,1711546254030,-500.0,0.00055342,120]
[320755953,1711546254039,-502.14363018,0.00055342,120]
[320755954,1711546254048,-500.0,0.00055342,120]
[320755955,1711546254057,-500.0,0.00055342,120]
[320755956,1711546254067,-500.0,0.00055342,120]
[320755957,1711546254076,-500.0,0.00055342,120]
[320755958,1711546254085,-626.37,0.00055342,120]
[320755959,1711546254095,-500.0,0.00055342,120]
[320755960,1711546254104,-500.0,0.00055342,120]
[320755961,1711546254116,-708.09,0.00055342,120]
[320755962,1711546254125,-500.0,0.00055342,120]
[320755963,1711546254135,-500.0,0.00055342,120]
[320755964,1711546254145,-500.0,0.00055342,120]
[320755965,1711546254155,-543.86,0.00055342,120]
[320755966,1711546254164,-500.0,0.00055342,120]
[320755967,1711546254173,-500.0,0.00055342,120]
[320755968,1711546254183,-500.0,0.00055342,120]
[320755969,1711546254193,-500.0,0.00055342,120]
[320755970,1711546254203,-500.0,0.00055342,120]
[320755971,1711546254213,-500.0,0.00055342,120]
[320755972,1711546254223,-500.0,0.00055342,120]
[320755973,1711546254232,-500.0,0.00055342,120]
[320755974,1711546254243,-500.0,0.00055342,120]
[320755975,1711546254253,-500.0,0.00055342,120]
[320755976,1711546254263,-500.0,0.00055342,120]
[320755977,1711546254272,-538.35,0.00055342,120]
[320755978,1711546254281,-735.73,0.00055342,120]
[320755979,1711546254291,-171.92,0.00055342,120]
[320755980,1711546254300,-508.5,0.00055342,120]
[320755981,1711546254309,-500.0,0.00055342,120]
[320755982,1711546254318,-608.18,0.00055342,120]
[320755983,1711546254327,-500.0,0.00055342,120]
[320755984,1711546254336,-500.0,0.00055342,120]
[320755985,1711546254345,-1125.86,0.00055342,120]
[320755986,1711546254355,-500.0,0.00055342,120]
[320755987,1711546254366,-1843.65,0.00055342,120]
[320755988,1711546254378,-500.0,0.00055342,120]
[320755989,1711546254389,-500.0,0.00055342,120]
[320755990,1711546254398,-598.38,0.00055342,120]
[320755991,1711546254408,-500.0,0.00055342,120]
[320755992,1711546254419,-510.94,0.00055342,60]
[320755993,1711546254428,-500.0,0.00055342,120]
[320755994,1711546254438,-500.0,0.00055342,120]
[320755995,1711546254447,-500.0,0.00055342,120]
[320755996,1711546254458,-696.37,0.00055342,120]
[320755997,1711546254468,-500.0,0.00055342,120]
[320755998,1711546254477,-500.0,0.00055342,120]
[320755999,1711546254486,-500.0,0.00055342,120]
[320756000,1711546254495,-1625.34,0.00055342,120]
[320756001,1711546254505,-500.0,0.00055342,120]
[320756002,1711546254514,-500.0,0.00055342,120]
[320756003,1711546254523,-500.0,0.00055342,120]
[320756004,1711546254533,-500.0,0.00055342,120]
[320756005,1711546254543,-500.0,0.00055342,120]
[320756006,1711546254552,-500.0,0.00055342,120]
[320756007,1711546254562,-500.0,0.00055342,120]
[320756008,1711546254572,-500.0,0.00055342,120]
[320756009,1711546254581,-500.0,0.00055342,120]
[320756010,1711546254590,-500.0,0.00055342,120]
[320756011,1711546254599,-500.0,0.00055342,120]
[320756012,1711546254610,-526.63,0.00055342,120]
[320756013,1711546254619,-500.0,0.00055342,120]
[320756014,1711546254629,-528.3,0.00055342,120]
[320756015,1711546254638,-440.26175783,0.00055342,120]
[320756016,1711546254648,-500.0,0.00055342,120]
[320756017,1711546254658,-500.0,0.00055342,120]
[320756018,1711546254667,-500.0,0.00055342,120]
[320756019,1711546254677,-300.44,0.00055342,120]
[320756020,1711546254686,-500.0,0.00055342,120]
[320756021,1711546254695,-500.0,0.00055342,120]
[320756022,1711546254705,-656.03,0.00055342,120]
[320756023,1711546254714,-500.0,0.00055342,120]
[320756024,1711546254723,-500.0,0.00055342,120]
[320756025,1711546254733,-1286.21,0.00055342,120]
[320756026,1711546254743,-1035.35,0.00055342,120]
[320756027,1711546254753,-1349.26,0.00055342,120]
[320756028,1711546254763,-224.37,0.00055342,120]
[320756029,1711546254772,-500.0,0.00055342,120]
[320756030,1711546254781,-500.0,0.00055342,120]
[320756031,1711546254791,-500.0,0.00055342,120]
[320756032,1711546254800,-725.7,0.00055342,120]
[320756033,1711546254810,-500.0,0.00055342,120]
[320756034,1711546254819,-352.61,0.00055342,120]
[320756035,1711546254829,-500.0,0.00055342,120]
[320756036,1711546254838,-500.0,0.00055342,120]
[320756037,1711546254847,-500.0,0.00055342,120]
[320756038,1711546254859,-720.29,0.00055342,120]
[320756039,1711546254868,-500.0,0.00055342,120]
[320756040,1711546254877,-500.0,0.00055342,120]
[320756041,1711546254885,-500.0,0.00055342,120]
[320756042,1711546254894,-679.92,0.00055342,120]
[320756043,1711546254903,-500.0,0.00055342,120]
[320756044,1711546254913,-500.0,0.00055342,120]
[320756045,1711546254923,-399.5,0.00055342,120]
[320756046,1711546254932,-500.0,0.00055342,120]
[320756047,1711546254942,-518.87,0.00055342,120]
[320756048,1711546254952,-500.0,0.00055342,120]
[320756049,1711546254962,-500.0,0.00055342,120]
[320756050,1711546254972,-1000.0,0.00055342,120]
[320756051,1711546254981,-500.0,0.00055342,120]
[320756052,1711546254991,-560.6,0.00055342,120]
[320756053,1711546255000,-712.56,0.00055342,120]
[320756054,1711546255010,-500.0,0.00055342,120]
[320756055,1711546255020,-702.36,0.00055342,120]
[320756056,1711546255030,-500.0,0.00055342,120]
[320756057,1711546255039,-539.02,0.00055342,120]
[320756058,1711546255049,-500.0,0.00055342,120]
[320756059,1711546255058,-500.0,0.00055342,120]
[320756060,1711546255068,-500.0,0.00055342,120]
[320756061,1711546255078,-500.0,0.00055342,120]
[320756062,1711546255088,-500.0,0.00055342,120]
[320756063,1711546255098,-500.0,0.00055342,120]
[320756064,1711546255110,-489.53074967,0.00055342,120]
[320756065,1711546255119,-500.0,0.00055342,120]
[320756066,1711546255129,-500.0,0.00055342,120]
[320756067,1711546255139,-731.02,0.00055342,120]
[320756068,1711546255148,-500.0,0.00055342,120]
[320756069,1711546255158,-319.26655198,0.00055342,120]
[320756070,1711546255167,-500.0,0.00055342,120]
[320756071,1711546255176,-652.69,0.00055342,120]
[320756072,1711546255186,-508.68,0.00055342,120]
[320756073,1711546255196,-1364.67,0.00055342,120]
[320756074,1711546255206,-610.56,0.00055342,120]
[320756075,1711546255215,-500.0,0.00055342,120]
[320756076,1711546255224,-888.28,0.00055342,120]
[320756077,1711546255234,-1571.16,0.00055342,120]
[320756078,1711546255243,-524.2,0.00055342,120]
[320756079,1711546255253,-788.85,0.00055342,120]
[320756080,1711546255264,-500.0,0.00055342,120]
[320756081,1711546255276,-171.17081214,0.00055342,120]
[320756082,1711546255286,-500.0,0.00055342,120]
[320756083,1711546255295,-606.55,0.00055342,120]
[320756084,1711546255305,-500.0,0.00055342,120]
[320756085,1711546255314,-500.0,0.00055342,120]
[320756086,1711546255324,-500.0,0.00055342,120]
[320756087,1711546255333,-500.0,0.00055342,120]
[320756088,1711546255343,-500.0,0.00055342,120]
[320756089,1711546255353,-979.53,0.00055342,120]
[320756090,1711546255368,-500.0,0.00055342,120]
[320756091,1711546255379,-546.29,0.00055342,120]
[320756092,1711546255390,-523.62,0.00055342,120]
[320756093,1711546255400,-735.73,0.00055342,120]
[320756094,1711546255412,-1430.03,0.00055342,120]
[320756095,1711546255422,-500.0,0.00055342,120]
[320756096,1711546255433,-500.0,0.00055342,120]
[320756097,1711546255443,-512.99,0.00055342,120]
[320756098,1711546255453,-500.0,0.00055342,120]
[320756099,1711546255463,-500.0,0.00055342,120]
[320756100,1711546255472,-500.0,0.00055342,120]
[320756101,1711546255481,-655.53,0.00055342,120]
[320756102,1711546255491,-643.82,0.00055342,120]
[320756103,1711546255501,-500.0,0.00055342,120]
[320756104,1711546255511,-945.38,0.00055342,120]
[320756105,1711546255522,-500.0,0.00055342,120]
[320756106,1711546255532,-254.05,0.00055342,120]
[320756107,1711546255542,-561.63,0.00055342,30]
[320756108,1711546255551,-500.0,0.00055342,120]
[320756109,1711546255561,-500.0,0.00055342,120]
[320756110,1711546255570,-500.0,0.00055342,120]
[320756111,1711546255580,-500.0,0.00055342,120]
[320756112,1711546255593,-500.0,0.00055342,120]
[320756113,1711546255602,-1344.28,0.00055342,120]
[320756114,1711546255617,-500.0,0.00055342,120]
[320756115,1711546255627,-500.0,0.00055342,120]
[320756116,1711546255637,-500.0,0.00055342,120]
[320756117,1711546255646,-988.46,0.00055342,120]
[320756118,1711546255655,-500.0,0.00055342,120]
[320756119,1711546255665,-500.0,0.00055342,120]
[320756120,1711546255675,-500.0,0.00055342,120]
[320756121,1711546255684,-600.1,0.00055342,120]
[320756122,1711546255694,-557.47,0.00055342,120]
[320756123,1711546255703,-500.0,0.00055342,120]
[320756124,1711546255712,-500.25,0.00055342,120]
[320756125,1711546255721,-500.0,0.00055342,120]
[320756126,1711546255731,-500.0,0.00055342,120]
[320756127,1711546255741,-567.33,0.00055342,120]
[320756128,1711546255750,-500.0,0.00055342,120]
[320756129,1711546255761,-500.0,0.00055342,120]
[320756130,1711546255771,-500.0,0.00055342,120]
[320756131,1711546255780,-1394.47,0.00055342,120]
[320756132,1711546255790,-590.16,0.00055342,120]
[320756133,1711546255800,-500.0,0.00055342,120]
[320756134,1711546255809,-500.0,0.00055342,120]
[320756135,1711546255818,-500.0,0.00055342,120]
[320756136,1711546255828,-500.0,0.00055342,120]
[320756137,1711546255837,-500.0,0.00055342,120]
[320756138,1711546255846,-500.0,0.00055342,120]
[320756139,1711546255855,-548.86,0.00055342,120]
[320756140,1711546255868,-500.0,0.00055342,120]
[320756141,1711546255877,-511.0,0.00055342,120]
[320756142,1711546255887,-500.0,0.00055342,120]
[320756143,1711546255896,-500.0,0.00055342,120]
[320756144,1711546255906,-365.93,0.00055342,120]
[320756145,1711546255916,-710.04,0.00055342,120]
[320756146,1711546256100,-500.0,0.00055342,120]
[320756147,1711546256113,-542.11,0.00055342,120]
[320756148,1711546256123,-500.0,0.00055342,120]
[320756149,1711546256133,-506.08,0.00055342,120]
[320756150,1711546256143,-500.0,0.00055342,120]
[320756151,1711546256152,-500.0,0.00055342,120]
[320756152,1711546256162,-626.43,0.00055342,120]
[320756153,1711546256171,-500.0,0.00055342,120]
[320756154,1711546256180,-500.0,0.00055342,120]
[320756155,1711546256190,-442.02,0.00055342,120]
[320756156,1711546256199,-500.0,0.00055342,120]
[320756157,1711546256210,-1563.81,0.00055342,120]
[320756158,1711546256225,-500.0,0.00055342,120]
[320756159,1711546256235,-500.0,0.00055342,120]
[320756160,1711546256251,-500.0,0.00055342,120]
[320756161,1711546256260,-796.05,0.00055342,120]
[320756162,1711546256271,-500.0,0.00055342,120]
[320756163,1711546256282,-531.42,0.00055342,120]
[320756164,1711546256291,-722.74,0.00055342,120]
[320756165,1711546256301,-500.0,0.00055342,120]
[320756166,1711546256312,-1302.25,0.00055342,120]
[320756167,1711546256322,-500.0,0.00055342,120]
[320756168,1711546256331,-500.0,0.00055342,120]
[320756169,1711546256340,-500.0,0.00055342,120]
[320756170,1711546256350,-500.0,0.00055342,120]
[320756171,1711546256365,-507.66,0.00055342,120]
[320756172,1711546256376,-1249.7,0.00055342,120]
[320756173,1711546256385,-500.0,0.00055342,120]
[320756174,1711546256394,-500.0,0.00055342,120]
[320756175,1711546256404,-500.0,0.00055342,120]
[320756176,1711546256414,-629.16,0.00055342,120]
[320756177,1711546256424,-684.28,0.00055342,120]
[320756178,1711546256434,-536.56,0.00055342,120]
[320756179,1711546256445,-653.48,0.00055342,120]
[320756180,1711546256455,-500.0,0.00055342,120]
[320756181,1711546256465,-500.0,0.00055342,120]
[320756182,1711546256475,-500.0,0.00055342,120]